bitfinex/quotes_BTCUSD_20220303
["timestamp","ask_amount","ask_price","bid_price","bid_amount"]
[1646329405008,0.117891,42457.0,42454.0,0.058944]
[1646329405706,0.05936134,42461.0,42454.0,0.058944]
[1646329406005,0.058939,42461.0,42454.0,0.058944]
[1646329406660,8.923e-05,42460.0,42454.0,0.058944]
[1646329406865,0.00017846,42460.0,42454.0,0.058944]
[1646329407061,0.00026769,42460.0,42454.0,0.058944]
[1646329407361,8.923e-05,42460.0,42454.0,0.058944]
[1646329407560,0.058939,42461.0,42454.0,0.058944]
[1646329407761,0.54673202,42461.0,42454.0,0.058944]
[1646329408162,8.923e-05,42459.0,42454.0,0.058944]
[1646329408362,0.00017846,42459.0,42454.0,0.058944]
[1646329408563,0.00026769,42459.0,42454.0,0.058944]
[1646329408766,0.48806071,42459.0,42451.0,0.20904838]
[1646329408964,0.48806071,42459.0,42450.0,0.117891]
[1646329408965,0.68779302,42458.0,42450.0,0.117891]
[1646329409164,0.1179169,42452.0,42439.0,0.2305]
[1646329409367,0.1179169,42452.0,42437.0,0.117931]
[1646329409368,0.520295,42451.0,42437.0,0.117931]
[1646329409663,0.01424975,42450.0,42440.0,0.01464046]
[1646329409864,0.0434,42449.0,42441.0,0.01460963]
[1646329410066,0.058965,42447.0,42441.0,0.01460963]
[1646329410532,0.058965,42447.0,42441.0,0.13253663]
[1646329410732,0.058965,42447.0,42442.0,0.0139364]
[1646329410933,0.058965,42447.0,42443.0,0.01094698]
[1646329411130,0.058965,42447.0,42444.0,0.01343973]
[1646329411333,0.158965,42447.0,42445.0,0.01033391]
[1646329411530,0.0434,42446.0,42441.0,0.127359]
[1646329411730,0.0434,42446.0,42441.0,0.117927]
[1646329411932,0.161322,42446.0,42441.0,0.117927]
[1646329413235,0.261322,42446.0,42441.0,0.117927]
[1646329414076,0.266322,42446.0,42441.0,0.117927]
[1646329414468,0.65411502,42446.0,42441.0,0.117927]
[1646329414670,0.266322,42446.0,42441.0,0.117927]
[1646329415270,0.261322,42446.0,42441.0,0.117927]
[1646329415470,0.261322,42446.0,42441.0,0.33062872]
[1646329415671,0.261322,42446.0,42444.0,0.11892427]
[1646329415872,0.38779302,42445.0,42444.0,0.11892427]
[1646329416074,0.60571502,42446.0,42444.0,0.11892427]
[1646329416480,0.38779302,42447.0,42444.0,0.26036527]
[1646329416674,0.005,42451.0,42445.0,0.058945]
[1646329416871,0.005,42451.0,42445.0,0.176818]
[1646329417071,0.005,42451.0,42446.0,0.21476945]
[1646329417271,0.05,42459.0,42447.0,0.3]
[1646329417472,0.058941,42456.0,42447.0,0.3]
[1646329417717,0.117894,42454.0,42446.0,0.05894]
[1646329417919,0.11799262,42454.0,42445.0,0.05894]
[1646329418119,0.14318986,42454.0,42447.0,0.002]
[1646329418518,0.058945,42452.0,42447.0,0.002]
[1646329418920,0.058945,42452.0,42447.0,0.060949]
[1646329419319,0.058945,42452.0,42447.0,0.058949]
[1646329419819,0.058945,42452.0,42445.0,0.05894]
[1646329420021,0.062945,42452.0,42445.0,0.05894]
[1646329421223,0.058945,42452.0,42445.0,0.05894]
[1646329421460,0.05868441,42452.0,42445.0,0.05894]
[1646329421662,0.05868441,42452.0,42446.0,0.01259328]
[1646329422462,0.05868441,42452.0,42446.0,0.07154028]
[1646329422663,0.05868441,42452.0,42446.0,0.01259328]
[1646329422860,0.05868441,42452.0,42449.0,0.09538828]
[1646329423060,0.05868441,42452.0,42450.0,0.01317784]
[1646329423260,0.05868441,42452.0,42451.0,0.01200267]
[1646329423464,0.05868441,42452.0,42445.0,0.001]
[1646329423862,0.05868441,42452.0,42445.0,0.19280418]
[1646329424061,0.05868441,42452.0,42448.0,0.25]
[1646329424861,0.05868441,42452.0,42448.0,0.44988763]
[1646329425061,0.05868441,42452.0,42448.0,0.25]
[1646329425707,0.3,42451.0,42448.0,0.25]
[1646329425905,0.5,42449.0,42439.0,0.00021207]
[1646329426203,0.058967,42440.0,42439.0,0.00021207]
[1646329426405,0.058967,42440.0,42439.0,7.069e-05]
[1646329426602,0.058967,42440.0,42433.0,0.09708726]
[1646329426808,0.3,42439.0,42437.0,0.00010012]
[1646329427005,0.3434,42439.0,42437.0,0.00010012]
[1646329427208,1.0,42437.0,42432.0,0.009432]
[1646329427406,0.0131199,42435.0,42429.0,0.00080112]
[1646329427703,0.0434,42434.0,42429.0,0.00120168]
[1646329427904,0.0434,42434.0,42430.0,0.20975369]
[1646329428304,0.102389,42434.0,42430.0,0.20975369]
[1646329429153,0.102389,42434.0,42430.0,0.32059225]
[1646329429950,0.102389,42434.0,42431.0,0.18614661]
[1646329430152,0.102389,42434.0,42431.0,0.058971]
[1646329430352,0.102389,42434.0,42430.0,0.11111936]
[1646329430653,0.102389,42434.0,42430.0,0.0004212]
[1646329431153,0.09456825,42434.0,42429.0,0.009434]
[1646329431353,0.058992,42433.0,42430.0,0.0001404]
[1646329431652,0.01328422,42431.0,42430.0,0.0001404]
[1646329431855,0.05668422,42431.0,42430.0,0.0001404]
[1646329432052,0.05668422,42431.0,42430.0,0.0004212]
[1646329432455,0.05668422,42431.0,42430.0,0.0002808]
[1646329432706,0.102394,42431.0,42427.0,0.10789087]
[1646329432910,0.0434,42431.0,42427.0,0.10789087]
[1646329433505,0.0434,42431.0,42427.0,0.12079643]
[1646329434306,0.0434,42431.0,42427.0,0.17977543]
[1646329434609,0.102374,42431.0,42430.0,0.01274978]
[1646329434805,0.102374,42431.0,42427.0,0.16699049]
[1646329435006,0.102374,42431.0,42427.0,0.17642449]
[1646329435207,0.102374,42431.0,42427.0,0.16723173]
[1646329435708,0.102374,42431.0,42427.0,0.22596449]
[1646329436009,0.007,42431.0,42427.0,0.24938387]
[1646329436209,0.007,42431.0,42427.0,0.22596449]
[1646329436654,0.007,42431.0,42427.0,0.22608511]
[1646329436855,0.007,42431.0,42427.0,0.22620573]
[1646329437057,0.058973,42430.0,42427.0,0.22620573]
[1646329437262,0.058973,42430.0,42427.0,0.22608511]
[1646329437557,0.01592663,42441.0,42427.0,0.22608511]
[1646329437558,0.05,42444.0,42427.0,0.24938387]
[1646329437758,0.02405028,42449.0,42430.0,0.02354]
[1646329437957,0.0864647,42448.0,42434.0,0.02354]
[1646329438158,0.058946,42449.0,42434.0,0.03401274]
[1646329438357,0.01477324,42450.0,42435.0,0.360969]
[1646329438358,0.00024114,42444.0,42435.0,0.360969]
[1646329438559,0.00036171,42444.0,42443.0,0.1152334]
[1646329438958,0.00012057,42444.0,42443.0,0.0916934]
[1646329439158,0.01477324,42450.0,42443.0,0.0916934]
[1646329439557,0.01477324,42450.0,42445.0,0.17611974]
[1646329439760,0.01477324,42450.0,42443.0,0.0916934]
[1646329439958,0.00011864,42449.0,42443.0,0.0916934]
[1646329440211,0.00023728,42449.0,42443.0,0.0916934]
[1646329440408,0.00022562,42449.0,42443.0,0.0916934]
[1646329440805,0.00011864,42449.0,42444.0,0.15876398]
[1646329441008,0.02277324,42450.0,42444.0,0.15876398]
[1646329441407,0.01477324,42450.0,42444.0,0.18230398]
[1646329441808,0.05,42454.0,42448.0,0.00471392]
[1646329442009,0.45228714,42462.0,42453.0,0.02354]
[1646329442208,0.45228714,42462.0,42457.0,0.25507199]
[1646329442409,0.45228714,42462.0,42446.0,0.01050523]
[1646329442606,0.3,42461.0,42446.0,0.05692513]
[1646329442806,0.015,42462.0,42456.0,0.009427]
[1646329443007,0.12187755,42461.0,42456.0,0.009427]
[1646329443207,0.00400755,42461.0,42450.0,0.0866708]
[1646329443412,0.01528086,42462.0,42447.0,0.18218965]
[1646329443607,0.01542129,42462.0,42446.0,0.117867]
[1646329443809,0.00028086,42462.0,42446.0,0.117867]
[1646329444056,0.058947,42451.0,42446.0,0.117867]
[1646329444455,0.058947,42451.0,42444.0,0.07452]
[1646329445059,0.058947,42451.0,42446.0,0.01300062]
[1646329445355,0.058947,42451.0,42444.0,0.07452]
[1646329445356,0.058947,42451.0,42447.0,0.058949]
[1646329445556,0.058947,42451.0,42444.0,0.07452]
[1646329445557,0.058947,42451.0,42448.0,0.01237663]
[1646329445756,0.058947,42451.0,42450.0,0.01166914]
[1646329445957,0.058947,42451.0,42447.0,0.08474568]
[1646329446155,0.060947,42451.0,42447.0,0.08474568]
[1646329446354,0.002,42451.0,42447.0,0.14369468]
[1646329447156,0.002,42451.0,42447.0,0.058949]
[1646329447355,0.4,42456.0,42446.0,0.00943]
[1646329447556,0.058945,42451.0,42446.0,0.00943]
[1646329448009,0.058945,42451.0,42446.0,0.068385]
[1646329448208,0.058945,42451.0,42446.0,0.16179176]
[1646329448610,0.058945,42451.0,42446.0,0.15236176]
[1646329449711,0.058945,42451.0,42446.0,0.09340676]
[1646329449910,0.058945,42451.0,42445.0,0.00028092]
[1646329450209,0.058945,42451.0,42445.0,0.058953]
[1646329450609,0.058945,42451.0,42445.0,0.05909346]
[1646329450811,0.058945,42451.0,42445.0,0.00014046]
[1646329451212,0.01583778,42449.0,42445.0,0.00028092]
[1646329451456,0.0434,42448.0,42445.0,0.00028092]
[1646329451660,0.0434,42448.0,42445.0,0.00014046]
[1646329451856,0.058966,42445.0,42444.0,0.07452]
[1646329452059,0.117936,42439.0,42434.0,0.058969]
[1646329452258,0.117936,42439.0,42430.0,0.17687]
[1646329452459,0.117936,42439.0,42428.0,0.10994737]
[1646329452460,0.01340017,42437.0,42429.0,0.15737274]
[1646329452660,0.0434,42436.0,42425.0,0.19825292]
[1646329452963,0.058983,42426.0,42425.0,0.27071589]
[1646329453358,0.117951,42433.0,42425.0,0.27071589]
[1646329453760,0.0434,42436.0,42425.0,0.27071589]
[1646329453761,0.0434,42436.0,42425.0,0.29425589]
[1646329453960,0.0434,42436.0,42427.0,0.00012618]
[1646329454460,0.0434,42436.0,42434.0,0.21461598]
[1646329454859,0.0434,42436.0,42433.0,0.058968]
[1646329455906,0.0434,42436.0,42434.0,0.0110558]
[1646329456109,0.0474,42436.0,42434.0,0.0110558]
[1646329456305,0.0474,42436.0,42433.0,0.058968]
[1646329456306,0.0474,42436.0,42435.0,0.0128151]
[1646329456506,0.0474,42436.0,42433.0,0.058968]
[1646329456706,0.058967,42435.0,42433.0,0.058968]
[1646329458709,0.004,42440.0,42433.0,0.058968]
[1646329458710,0.004,42440.0,42434.0,0.360969]
[1646329458983,0.004,42440.0,42439.0,0.17763432]
[1646329459182,0.00265365,42440.0,42439.0,0.17763432]
[1646329459584,0.00265365,42440.0,42439.0,0.26524311]
[1646329459786,0.00265365,42440.0,42439.0,0.44984807]
[1646329460185,0.004,42445.0,42439.0,0.45084807]
[1646329460382,0.004,42445.0,42440.0,0.360969]
[1646329460581,0.004,42445.0,42439.0,0.45084807]
[1646329461383,0.05,42448.0,42439.0,0.44984807]
[1646329461582,0.11789,42455.0,42439.0,0.44984807]
[1646329461583,0.058946,42450.0,42439.0,0.44984807]
[1646329461883,0.058946,42450.0,42440.0,8.421e-05]
[1646329462083,0.058946,42450.0,42446.0,0.10727366]
[1646329462284,0.058946,42450.0,42446.0,0.16621666]
[1646329462712,0.058946,42450.0,42446.0,0.058943]
[1646329462915,0.058946,42450.0,42440.0,0.00016842]
[1646329462916,0.058946,42450.0,42439.0,0.178831]
[1646329463112,0.43752546,42454.0,42439.0,0.178831]
[1646329463113,0.058959,42441.0,42439.0,0.178831]
[1646329463316,0.058959,42441.0,42439.0,0.176831]
[1646329463515,0.058959,42441.0,42440.0,0.00056191]
[1646329463713,0.058959,42441.0,42440.0,0.00112382]
[1646329464013,0.117917,42445.0,42440.0,0.00168573]
[1646329464213,0.005,42446.0,42441.0,0.360969]
[1646329464413,0.005,42446.0,42440.0,0.21634999]
[1646329465014,0.005,42446.0,42441.0,0.00014046]
[1646329465416,0.058946,42450.0,42448.0,0.09708506]
[1646329465615,0.052946,42450.0,42448.0,0.09708506]
[1646329466016,0.052946,42450.0,42449.0,0.1967769]
[1646329466216,0.26388898,42456.0,42449.0,0.1967769]
[1646329466217,0.004,42455.0,42451.0,0.360969]
[1646329466687,0.004,42455.0,42454.0,0.011501]
[1646329466886,0.004,42455.0,42454.0,0.37247]
[1646329467088,0.004,42455.0,42454.0,0.360969]
[1646329467287,0.00804086,42463.0,42455.0,1.02354]
[1646329467488,0.00804086,42463.0,42454.0,0.16887667]
[1646329467787,0.00804086,42463.0,42455.0,0.058925]
[1646329468188,0.00804086,42463.0,42453.0,0.058926]
[1646329468391,0.00804086,42463.0,42460.0,0.12060956]
[1646329469589,0.00804086,42463.0,42461.0,0.18263363]
[1646329470413,0.00804086,42463.0,42462.0,0.20053357]
[1646329471017,0.00032123,42464.0,42463.0,1.384509]
[1646329471213,0.00025358,42464.0,42463.0,1.0]
[1646329471413,0.0002218,42474.0,42470.0,0.11425375]
[1646329471614,0.058915,42472.0,42465.0,0.058923]
[1646329472817,0.3,42471.0,42459.0,0.2492]
[1646329473017,0.058937,42468.0,42458.0,0.117859]
[1646329473520,0.058937,42468.0,42461.0,0.17304491]
[1646329473716,0.058937,42468.0,42458.0,0.22228904]
[1646329474160,0.062937,42468.0,42458.0,0.22228904]
[1646329475161,0.00014042,42466.0,42458.0,0.22228904]
[1646329475359,0.00042126,42466.0,42458.0,0.22228904]
[1646329475759,0.00028084,42466.0,42458.0,0.22228904]
[1646329475958,0.058937,42468.0,42458.0,0.22228904]
[1646329476164,0.004,42466.0,42458.0,0.22228904]
[1646329476359,0.004,42466.0,42460.0,0.25]
[1646329476560,0.00414042,42466.0,42460.0,0.25]
[1646329476758,0.00428084,42466.0,42460.0,0.25]
[1646329476958,0.00442126,42466.0,42460.0,0.25]
[1646329477158,0.00442126,42466.0,42461.0,0.01248628]
[1646329477361,0.00042126,42466.0,42464.0,0.01164371]
[1646329477559,0.00042126,42466.0,42463.0,0.11783]
[1646329477560,0.00014042,42466.0,42463.0,0.11783]
[1646329477805,0.118935,42475.0,42463.0,0.11783]
[1646329478210,8.891e-05,42467.0,42463.0,0.11783]
[1646329478413,0.00017782,42467.0,42466.0,0.11468148]
[1646329478610,0.00026673,42467.0,42463.0,0.058913]
[1646329478811,0.00017782,42467.0,42463.0,0.058913]
[1646329479008,8.891e-05,42467.0,42463.0,0.058913]
[1646329479208,0.058921,42468.0,42465.0,0.20773998]
[1646329479408,0.058921,42468.0,42463.0,0.058913]
[1646329479808,8.891e-05,42467.0,42464.0,0.058917]
[1646329480009,8.891e-05,42467.0,42466.0,0.60563714]
[1646329480010,0.00026673,42467.0,42466.0,0.60563714]
[1646329480217,0.00026673,42467.0,42466.0,0.57995458]
[1646329480409,0.00017782,42467.0,42466.0,0.71898558]
[1646329480609,8.891e-05,42467.0,42466.0,0.71898558]
[1646329480810,0.004,42468.0,42466.0,0.87514785]
[1646329481010,0.004,42468.0,42467.0,0.18596529]
[1646329481493,0.00016024,42469.0,42466.0,0.5]
[1646329481690,0.00024036,42469.0,42466.0,0.5]
[1646329482086,8.012e-05,42469.0,42466.0,0.5]
[1646329482288,0.0011,42475.0,42466.0,0.5]
[1646329482486,0.0011,42475.0,42467.0,0.058916]
[1646329482985,0.00012201,42470.0,42467.0,0.058916]
[1646329483185,0.00036603,42470.0,42467.0,0.058916]
[1646329483586,0.00024402,42470.0,42467.0,0.058916]
[1646329483786,0.058916,42472.0,42467.0,0.058916]
[1646329483992,0.0011,42475.0,42468.0,0.5]
[1646329484187,0.0011,42475.0,42472.0,0.19281587]
[1646329484787,0.0011,42475.0,42473.0,0.41347491]
[1646329484988,0.0011,42475.0,42473.0,0.91347491]
[1646329485408,0.0011,42475.0,42473.0,0.61347491]
[1646329485810,0.0011,42475.0,42474.0,1.0]
[1646329486211,0.0011,42475.0,42474.0,1.26147571]
[1646329486409,0.0002061,42476.0,42474.0,1.43815171]
[1646329486613,0.0002061,42476.0,42475.0,0.81870989]
[1646329486810,6.87e-05,42476.0,42475.0,0.88607349]
[1646329487111,0.0021,42489.0,42479.0,0.03608928]
[1646329487309,0.0021,42489.0,42483.0,0.02354]
[1646329487510,0.0021,42489.0,42485.0,0.5]
[1646329487710,0.0021,42489.0,42486.0,0.21943069]
[1646329487911,0.0021,42489.0,42487.0,0.01484176]
[1646329488110,0.0021,42489.0,42485.0,0.558877]
[1646329488959,0.0021,42489.0,42487.0,0.11409471]
[1646329489162,0.0021,42489.0,42487.0,0.61409471]
[1646329489163,0.00224095,42489.0,42487.0,0.61409471]
[1646329489361,0.00252285,42489.0,42487.0,0.5]
[1646329489760,0.0023819,42489.0,42487.0,0.5]
[1646329489960,0.00224095,42489.0,42487.0,0.5]
[1646329490161,0.0021,42489.0,42487.0,0.5]
[1646329496127,0.00221013,42490.0,42488.0,0.87711856]
[1646329496328,0.0021,42490.0,42489.0,0.3]
[1646329496569,0.001,42491.0,42490.0,10.625398]
[1646329497173,0.0011963,42491.0,42490.0,10.625398]
[1646329497370,0.00129445,42491.0,42490.0,11.125398]
[1646329497568,0.0011963,42491.0,42490.0,11.125398]
[1646329497767,0.00109815,42491.0,42490.0,11.125398]
[1646329497969,0.001,42491.0,42490.0,11.33361285]
[1646329499373,0.0031963,42493.0,42491.0,1.0]
[1646329499575,0.003,42493.0,42492.0,0.3]
[1646329499773,0.120743,42507.0,42495.0,1.0]
[1646329499774,0.028,42501.0,42495.0,1.0]
[1646329499973,0.028,42501.0,42493.0,1.0]
[1646329499974,0.003,42507.0,42497.0,1.5]
[1646329500216,0.003,42507.0,42504.0,0.06585575]
[1646329500414,0.003,42507.0,42497.0,1.5]
[1646329500614,0.003,42507.0,42497.0,0.5]
[1646329500815,0.003,42507.0,42503.0,0.08786464]
[1646329501014,0.003,42507.0,42503.0,0.58786464]
[1646329501212,0.001,42510.0,42504.0,1.49]
[1646329501418,0.001,42510.0,42505.0,0.3]
[1646329501614,0.001,42510.0,42504.0,0.49]
[1646329501815,0.001,42510.0,42504.0,0.79]
[1646329502015,0.00012747,42509.0,42504.0,0.79]
[1646329502218,0.00025494,42509.0,42505.0,0.1831739]
[1646329502517,0.05924641,42509.0,42503.0,0.7]
[1646329502722,0.05911894,42509.0,42503.0,0.7]
[1646329502918,0.06291526,42509.0,42503.0,0.7]
[1646329503116,0.06291526,42509.0,42503.0,0.5]
[1646329503621,0.04732747,42508.0,42503.0,0.5]
[1646329503818,0.04745494,42508.0,42503.0,0.5]
[1646329504063,0.04745494,42508.0,42492.0,0.3]
[1646329504064,0.05163367,42508.0,42499.0,0.5]
[1646329504266,0.117772,42501.0,42499.0,0.5]
[1646329504868,0.0472,42500.0,42499.0,0.5]
[1646329505664,0.0472,42500.0,42488.0,0.3]
[1646329505665,0.058888,42497.0,42490.0,0.5]
[1646329505866,0.0472,42496.0,42490.0,0.5]
[1646329506464,0.117783,42495.0,42490.0,0.5]
[1646329506665,0.0472,42494.0,42490.0,0.5]
[1646329507829,0.0472,42493.0,42490.0,0.5]
[1646329508030,0.1,42495.0,42490.0,0.5]
[1646329508031,0.0472,42492.0,42490.0,0.5]
[1646329508329,0.1,42495.0,42490.0,0.5]
[1646329508330,0.0472,42491.0,42490.0,0.5]
[1646329508730,0.176747,42488.0,42483.0,0.01427582]
[1646329508930,0.17150325,42487.0,42483.0,0.01427582]
[1646329509132,0.17150325,42487.0,42482.0,0.44247582]
[1646329509331,0.27150325,42487.0,42482.0,0.44247582]
[1646329509531,0.27150325,42487.0,42482.0,0.08896082]
[1646329509532,0.12430325,42484.0,42482.0,0.08896082]
[1646329509728,0.0472,42483.0,42482.0,0.08896082]
[1646329510136,1.0,42482.0,42467.0,0.5]
[1646329510335,0.117863,42477.0,42467.0,0.5]
[1646329510633,0.12430325,42471.0,42463.0,0.0147112]
[1646329510830,0.0472,42470.0,42463.0,0.01314159]
[1646329511035,0.0472,42470.0,42456.0,0.0011]
[1646329511036,0.12430325,42466.0,42456.0,0.0011]
[1646329511235,0.05895,42464.0,42456.0,0.0011]
[1646329511469,0.05895,42464.0,42456.0,0.01224817]
[1646329511470,0.0472,42463.0,42456.0,0.01224817]
[1646329511669,0.0472,42463.0,42459.0,0.09485038]
[1646329512069,0.0472,42463.0,42460.0,0.0388919]
[1646329512265,0.0472,42463.0,42460.0,0.01319515]
[1646329512466,0.165068,42463.0,42461.0,0.01078192]
[1646329512670,0.165068,42463.0,42459.0,0.00042297]
[1646329512671,0.165068,42463.0,42462.0,0.01182929]
[1646329512866,0.165068,42463.0,42456.0,0.0011]
[1646329513271,0.3,42462.0,42454.0,0.009429]
[1646329513467,0.2499,42459.0,42457.0,0.00014099]
[1646329513670,1.47150325,42458.0,42447.0,0.5]
[1646329513867,0.3472,42458.0,42457.0,0.00014099]
[1646329514067,0.3472,42458.0,42457.0,0.00028198]
[1646329514068,0.0472,42458.0,42457.0,0.00028198]
[1646329514467,1.0,42457.0,42452.0,0.01339069]
[1646329514670,1.0,42457.0,42451.0,0.00169212]
[1646329514671,0.0472,42456.0,42451.0,0.00056404]
[1646329514867,0.0472,42456.0,42444.0,0.0011]
[1646329515069,0.3,42455.0,42444.0,0.0011]
[1646329515333,0.0472,42454.0,42444.0,0.0011]
[1646329515528,0.0472,42454.0,42447.0,0.09735485]
[1646329515529,0.058959,42450.0,42447.0,0.09735485]
[1646329515727,0.165114,42449.0,42444.0,0.0011]
[1646329515929,0.3472,42448.0,42444.0,0.0011]
[1646329516128,0.0472,42448.0,42444.0,0.0011]
[1646329516328,0.1,42447.0,42444.0,0.0011]
[1646329516528,0.058969,42441.0,42438.0,0.01301864]
[1646329516732,0.0472,42440.0,42435.0,0.10887009]
[1646329517031,0.165145,42440.0,42439.0,0.00056409]
[1646329517234,0.0472,42440.0,42439.0,0.00112818]
[1646329517531,0.0472,42440.0,42439.0,0.16857944]
[1646329517729,0.0472,42440.0,42439.0,0.16801535]
[1646329517932,0.0472,42440.0,42439.0,0.16745126]
[1646329518130,0.02113457,42440.0,42439.0,0.16745126]
[1646329518330,0.02713457,42440.0,42435.0,0.23856009]
[1646329518532,0.02713457,42440.0,42437.0,0.00014101]
[1646329519091,0.02713457,42440.0,42437.0,0.00028202]
[1646329519298,0.02713457,42440.0,42437.0,0.00042303]
[1646329519491,0.02113457,42440.0,42437.0,0.00028202]
[1646329519694,0.02113457,42440.0,42437.0,0.00014101]
[1646329519893,0.02113457,42440.0,42436.0,0.3]
[1646329520094,0.0472,42447.0,42438.0,0.02569675]
[1646329520294,0.0472,42447.0,42437.0,0.02569675]
[1646329520496,0.0472,42447.0,42436.0,0.00014101]
[1646329520698,0.058965,42438.0,42436.0,0.00028202]
[1646329520894,0.058965,42438.0,42436.0,0.00042303]
[1646329521294,0.058965,42438.0,42437.0,0.1661361]
[1646329521693,0.0722,42447.0,42437.0,0.1661361]
[1646329521694,0.11009465,42446.0,42437.0,0.1661361]
[1646329521894,0.058957,42442.0,42438.0,0.3]
[1646329522094,0.058957,42442.0,42439.0,0.18905884]
[1646329522395,0.058957,42442.0,42437.0,0.1661361]
[1646329522595,0.249104,42447.0,42437.0,0.1661361]
[1646329522818,0.058965,42439.0,42437.0,0.1661361]
[1646329523215,0.058965,42439.0,42435.0,0.13456684]
[1646329523416,0.058965,42439.0,42435.0,0.02569675]
[1646329523617,0.025,42442.0,42434.0,0.00056411]
[1646329523816,0.0472,42441.0,42440.0,0.00014101]
[1646329524017,0.106173,42441.0,42440.0,0.00028202]
[1646329524219,0.158973,42441.0,42440.0,0.00028202]
[1646329524617,0.158973,42441.0,42434.0,0.10057947]
[1646329525021,0.158973,42441.0,42438.0,9.448e-05]
[1646329525420,0.058973,42441.0,42438.0,0.00018896]
[1646329525623,0.058973,42441.0,42438.0,0.00028344]
[1646329525819,0.058973,42441.0,42438.0,0.19376816]
[1646329526024,0.058973,42441.0,42438.0,9.448e-05]
[1646329526221,0.058973,42441.0,42434.0,0.10057947]
[1646329526459,0.062973,42441.0,42437.0,9.448e-05]
[1646329526960,0.062973,42441.0,42437.0,0.00018896]
[1646329527161,0.062973,42441.0,42437.0,0.00028344]
[1646329527359,0.062973,42441.0,42437.0,0.16248012]
[1646329527560,0.058973,42441.0,42437.0,0.16229116]
[1646329527761,0.025,42443.0,42440.0,0.02569675]
[1646329527963,0.058953,42445.0,42441.0,0.19312442]
[1646329528161,0.058953,42445.0,42442.0,0.01191875]
[1646329528360,0.058953,42445.0,42441.0,0.17967865]
[1646329528361,0.002,42443.0,42441.0,0.17967865]
[1646329528759,0.002,42443.0,42442.0,0.11091427]
[1646329529760,0.058952,42445.0,42442.0,0.11091427]
[1646329530319,0.060952,42445.0,42441.0,0.17967865]
[1646329530918,0.060952,42445.0,42441.0,0.2053754]
[1646329531118,0.060952,42445.0,42444.0,0.11566985]
[1646329531320,0.060952,42445.0,42441.0,7.432e-05]
[1646329531523,0.058952,42445.0,42441.0,7.432e-05]
[1646329531721,0.058952,42445.0,42441.0,0.00014864]
[1646329531921,0.058952,42445.0,42441.0,0.00022296]
[1646329532119,0.058952,42445.0,42441.0,0.00014864]
[1646329532319,0.061952,42445.0,42436.0,0.3]
[1646329532520,0.058965,42438.0,42435.0,0.10569197]
[1646329532927,0.058965,42438.0,42426.0,0.52938]
[1646329533122,0.27496762,42440.0,42432.0,0.00039691]
[1646329533123,0.0472,42437.0,42432.0,0.00039691]
[1646329533326,1.0472,42436.0,42432.0,0.00079382]
[1646329533522,0.01338185,42435.0,42432.0,0.00079382]
[1646329533722,0.71681855,42433.0,42420.0,0.0011]
[1646329533981,0.058991,42424.0,42420.0,0.0011]
[1646329534587,0.0472,42423.0,42420.0,0.0011]
[1646329536082,0.0124129,42422.0,42420.0,0.00124059]
[1646329536281,0.0472,42421.0,42420.0,0.00124059]
[1646329536486,0.0472,42421.0,42420.0,0.06037418]
[1646329536684,0.0472,42421.0,42420.0,0.06051477]
[1646329537082,0.0472,42421.0,42420.0,0.06037418]
[1646329537286,0.0472,42421.0,42420.0,0.00124059]
[1646329537486,0.0472,42421.0,42420.0,0.0011]
[1646329538333,0.0512,42421.0,42420.0,0.0011]
[1646329538542,0.0512,42421.0,42417.0,0.0011]
[1646329538543,1.0,42420.0,42417.0,0.0011]
[1646329538733,0.0590144,42414.0,42409.0,0.0011]
[1646329538935,0.0472,42413.0,42409.0,0.0011]
[1646329539333,0.0472,42413.0,42410.0,0.01331824]
[1646329539532,0.0472,42413.0,42411.0,0.01141022]
[1646329539735,0.0472,42413.0,42412.0,0.01075891]
[1646329539932,0.0472,42413.0,42410.0,0.02569675]
[1646329540335,0.0542,42413.0,42412.0,0.2084508]
[1646329540533,0.0542,42413.0,42411.0,0.058993]
[1646329540732,0.0542,42413.0,42412.0,0.11646488]
[1646329541234,0.007,42413.0,42412.0,0.11646488]
[1646329541662,0.00028098,42414.0,42412.0,0.11646488]
[1646329541864,0.00042147,42414.0,42412.0,0.11646488]
[1646329542063,0.00028098,42414.0,42412.0,0.11646488]
[1646329542263,0.058992,42417.0,42412.0,0.11646488]
[1646329542465,0.1,42418.0,42409.0,0.358995]
[1646329542466,0.1,42418.0,42409.0,0.058995]
[1646329542663,0.118005,42413.0,42410.0,0.00013359]
[1646329543265,0.00028098,42417.0,42410.0,0.00026718]
[1646329543463,0.00028098,42417.0,42411.0,0.08560202]
[1646329543464,0.059,42412.0,42411.0,0.08560202]
[1646329544363,0.054,42412.0,42411.0,0.08560202]
[1646329545065,0.054,42412.0,42411.0,0.28452542]
[1646329546113,0.054,42412.0,42411.0,0.08560202]
[1646329547016,0.054,42412.0,42410.0,0.17699]
[1646329547215,0.054,42412.0,42409.0,0.056395]
[1646329547418,0.154,42412.0,42409.0,0.05649328]
[1646329547617,0.71360416,42411.0,42405.0,0.0011]
[1646329547817,0.1,42410.0,42405.0,0.0011]
[1646329548120,0.1,42410.0,42409.0,9.828e-05]
[1646329548320,0.105,42410.0,42409.0,9.828e-05]
[1646329548718,0.105,42410.0,42405.0,0.1798615]
[1646329548964,0.005,42410.0,42405.0,0.1798615]
[1646329549167,0.005,42410.0,42405.0,0.2388795]
[1646329549664,0.154,42412.0,42405.0,0.2388795]
[1646329550065,0.154,42412.0,42399.0,0.02569675]
[1646329550066,0.1669563,42401.0,42399.0,0.02569675]
[1646329550267,0.1669563,42402.0,42400.0,0.0011]
[1646329550966,0.1,42411.0,42400.0,0.0011]
[1646329550967,0.05,42414.0,42401.0,0.360969]
[1646329551169,0.05012352,42414.0,42411.0,0.02569675]
[1646329551369,0.05936256,42414.0,42412.0,0.28305157]
[1646329551566,0.05923904,42414.0,42412.0,0.10892646]
[1646329551769,0.05911552,42414.0,42412.0,0.10892646]
[1646329551965,0.058992,42414.0,42412.0,0.10892646]
[1646329552167,0.351,42426.0,42412.0,0.48901093]